fUST/lending_fUST_20251104
["ID","MTS","AMOUNT","RATE_DAILY","PERIOD"]
[393048670,1762242646582,-1308.37827505,0.00050136,120]
[393048671,1762242646591,-999.0,0.00050136,120]
[393048672,1762242646600,-712.152528,0.00050136,120]
[393048673,1762242646609,-281.033,0.00050451,90]
[393048674,1762242646618,-2000.0,0.000505,120]
[393048675,1762242646627,-9256.5148141,0.00050559,2]
[393048676,1762242646636,-999.0,0.00050958,120]
[393048677,1762242646645,-1000.0,0.00051,120]
[393048678,1762242646655,-1000.0,0.00051,120]
[393048679,1762242646664,-3893500.0,0.00051,10]
[393048680,1762242646674,-1000.0,0.00051,120]
[393048681,1762242646684,-3000.0,0.00051,85]
[393048682,1762242646695,-332.67,0.00051,14]
[393048683,1762242646705,-3000.0,0.0005101,85]
[393048684,1762242646714,-3000.0,0.0005102,85]
[393048685,1762242646723,-252.6596,0.0005102,7]
[393048686,1762242646737,-3000.0,0.0005103,85]
[393048687,1762242646747,-637.532503,0.0005103,120]
[393048688,1762242646758,-637.532503,0.0005103,120]
[393048689,1762242646767,-637.532503,0.0005103,120]
[393048690,1762242646777,-637.532503,0.0005103,120]
[393048691,1762242646786,-3000.0,0.0005104,85]
[393048692,1762242646796,-151.0,0.0005104,120]
[393048693,1762242646805,-3000.0,0.0005105,85]
[393048694,1762242646815,-3000.0,0.0005106,85]
[393048695,1762242646824,-3000.0,0.0005107,85]
[393048696,1762242646834,-3023.149093,0.0005108,85]
[393048697,1762242646843,-347.458065,0.0005108,15]
[393048699,1762242646853,-347.458065,0.0005108,15]
[393048701,1762242646863,-347.458065,0.0005108,15]
[393048703,1762242646872,-347.458073,0.0005108,15]
[393048704,1762242646882,-160.0,0.00051127,120]
[393048706,1762242646892,-209.0,0.0005119,30]
[393048707,1762242646901,-156.0,0.000512,120]
[393048709,1762242646911,-200.00000077,0.0005124,120]
[393048711,1762242646921,-167.0,0.00051349,120]
[393048713,1762242646934,-258.0,0.00051402,120]
[393048715,1762242646947,-2000.0,0.000515,120]
[393048716,1762242646960,-999.0,0.0005178,120]
[393048717,1762242646973,-509.10158491,0.00051916,30]
[393048718,1762242646987,-300.3,0.00051945,70]
[393048719,1762242646998,-5579.46071753,0.00051959,2]
[393048720,1762242647010,-1000.0,0.00052,120]
[393048721,1762242647022,-65002.5422118,0.00052,30]
[393048722,1762242647608,-531.13421893,0.00018624,2]
[393048723,1762242647618,-531.13421893,0.00018624,2]
[393048724,1762242647627,-531.13421893,0.00018624,2]
[393048725,1762242647636,-531.13421893,0.00018624,2]
[393048726,1762242647646,-531.13421893,0.00018624,2]
[393048727,1762242647655,-531.13421893,0.00018624,2]
[393048728,1762242647664,-531.13421893,0.00018624,2]
[393048729,1762242647673,-531.13421893,0.00018624,2]
[393048730,1762242647683,-531.13421893,0.00018624,2]
[393048731,1762242647692,-531.13421893,0.00018624,2]
[393048732,1762242647702,-531.13421893,0.00018624,2]
[393048733,1762242647712,-531.13421893,0.00018624,2]
[393048734,1762242647721,-531.13421893,0.00018624,2]
[393048735,1762242647732,-531.13421893,0.00018624,2]
[393048736,1762242647741,-531.13421893,0.00018624,2]
[393048737,1762242647751,-531.13421893,0.00018624,2]
[393048738,1762242647760,-531.13421893,0.00018624,2]
[393048739,1762242647769,-531.13421893,0.00018624,2]
[393048740,1762242647779,-531.13421893,0.00018624,2]
[393048741,1762242647788,-531.13421893,0.00018624,2]
[393048742,1762242647797,-296.66374296,0.00018624,2]
[393048743,1762242647893,419.93666097,0.00037334,20]
[393048744,1762242647989,-234.47047597,0.00018624,2]
[393048745,1762242647999,-531.13421893,0.00018624,2]
[393048746,1762242648008,-531.13421893,0.00018624,2]
[393048747,1762242648017,-531.13421893,0.00018624,2]
[393048748,1762242648026,-531.13421893,0.00018624,2]
[393048749,1762242648036,-531.13421893,0.00018624,2]
[393048750,1762242648045,-531.13421893,0.00018624,2]
[393048751,1762242648054,-531.13421893,0.00018624,2]
[393048752,1762242648064,-531.13421893,0.00018624,2]
[393048753,1762242648074,-531.13421893,0.00018624,2]
[393048754,1762242648085,-531.13421893,0.00018624,2]
[393048755,1762242648095,-531.13421893,0.00018624,2]
[393048756,1762242648105,-531.13421893,0.00018624,2]
[393048757,1762242648115,-531.13421893,0.00018624,2]
[393048758,1762242648124,-531.13421893,0.00018624,2]
[393048759,1762242648133,-531.13421893,0.00018624,2]
[393048760,1762242648143,-531.13421893,0.00018624,2]
[393048761,1762242648153,-531.13421893,0.00018624,2]
[393048762,1762242648163,-531.13421893,0.00018624,2]
[393048763,1762242648172,-531.13421893,0.00018624,2]
[393048764,1762242648181,-456.73284285,0.00018624,2]
[393048765,1762242648365,-74.40137608,0.00018624,2]
[393048766,1762242648375,-531.13421893,0.00018624,2]
[393048767,1762242648384,-531.13421893,0.00018624,2]
[393048768,1762242648393,-152.26870813,0.00020998,2]
[393048769,1762242648403,-152.26870813,0.00020998,2]
[393048770,1762242648412,-198.4409766,0.00022055,2]
[393048771,1762242648422,-9872.92693379,0.00023288,30]
[393048772,1762242648518,-254.92931921,0.00023288,30]
[393048773,1762242648527,-195.61128014,0.00027697,2]
[393048774,1762242648539,-198.4409766,0.00028419,4]
[393048775,1762242648555,-198.63941757,0.00034783,7]
[393048776,1762242648575,-200.0,0.000372,2]
[393048777,1762242648587,-2014.81300506,0.00043668,2]
[393048778,1762242648596,-533.86734118,0.00043835,120]
[393048779,1762242648606,-500.0,0.00043835,120]
[393048780,1762242648615,-518.81035021,0.00043835,120]
[393048781,1762242648624,-500.0,0.00043835,120]
[393048782,1762242648633,-500.0,0.00043835,120]
[393048783,1762242648642,-641.68831003,0.00044099,10]
[393048784,1762242648657,-853.79934507,0.00044099,10]
[393053988,1762242949327,-197.3048935,0.00018422,2]
[393053989,1762242949351,-253.44630278,0.00018425,2]
[393053990,1762242949374,-955.49782325,0.00018522,2]
[393054146,1762242975183,1406.24440632,0.000184,2]
[393054191,1762243069306,-300.0,0.000184,2]
[393054192,1762243069330,-243.75559368,0.00018471,2]
[393054196,1762243148764,8324.9397496,0.00017761,2]
[393054337,1762243165802,210.56,0.00018301,2]
[393054470,1762243229492,543.75559368,0.000183,2]
[393054741,1762243663155,184.31,0.00018509,3]
[393054742,1762243673746,552.95,0.00018509,3]
[393054744,1762243754850,4905.8096535,0.00017504,2]
[393054790,1762243832615,-300.0,0.000184,2]
[393054792,1762243832626,-85.36104247,0.000184,2]
[393054929,1762243838587,-156.63895753,0.000184,2]
[393054930,1762243838596,-150.0,0.00018409,2]
[393054931,1762243838606,-218.2357345,0.0001842,2]
[393054952,1762243840791,-170.8998557,0.0001842,2]
[393054953,1762243840800,-97.37254532,0.00018471,2]
[393054954,1762243840809,-183.32381492,0.00018514,2]
[393054955,1762243840866,-3e-08,0.00018514,2]
[393054956,1762243840943,-116.67618505,0.00018514,2]
[393054957,1762243840954,-666.0,0.00018514,2]
[393054958,1762243840964,-500.0,0.00018514,2]
[393054959,1762243840974,-164.19592674,0.00018514,2]
[393054960,1762243840984,-500.0,0.00018514,2]
[393054961,1762243840993,-549.5268034,0.00018514,2]
[393054962,1762243841003,-298.11488098,0.00018514,2]
[393054963,1762243841014,-500.0,0.00018514,2]
[393054964,1762243841024,-500.0,0.00018514,2]
[393054965,1762243841033,-348.24620383,0.00018514,2]
[393054978,1762243843636,-151.75379617,0.00018514,2]
[393054979,1762243843646,-500.0,0.00018514,2]
[393054980,1762243843655,-500.0,0.00018514,2]
[393054981,1762243843665,-500.0,0.00018514,2]
[393054982,1762243843674,-500.0,0.00018514,2]
[393054983,1762243843683,-500.0,0.00018514,2]
[393054984,1762243843692,-500.0,0.00018514,2]
[393054985,1762243843701,-500.0,0.00018514,2]
[393054986,1762243843710,-500.0,0.00018514,2]
[393054987,1762243843719,-500.0,0.00018514,2]
[393054988,1762243843729,-500.0,0.00018514,2]
[393054989,1762243843739,-573.11609608,0.00018514,2]
[393054990,1762243843748,-500.0,0.00018514,2]
[393054991,1762243843757,-500.0,0.00018514,2]
[393054992,1762243843766,-500.0,0.00018514,2]
[393054993,1762243843776,-500.0,0.00018514,2]
[393054994,1762243843785,-500.0,0.00018514,2]
[393054995,1762243843795,-500.0,0.00018514,2]
[393054996,1762243843804,-333.77747275,0.00018514,2]
[393054997,1762243843813,-500.0,0.00018514,2]
[393054998,1762243843822,-500.0,0.00018514,2]
[393054999,1762243843831,-500.0,0.00018514,2]
[393055000,1762243843840,-500.0,0.00018514,2]
[393055001,1762243843849,-500.0,0.00018514,2]
[393055002,1762243843859,-500.0,0.00018514,2]
[393055003,1762243843868,-500.0,0.00018514,2]
[393055004,1762243843877,-500.0,0.00018514,2]
[393055005,1762243843887,-500.0,0.00018514,2]
[393055006,1762243843896,-500.0,0.00018514,2]
[393055007,1762243843905,-500.0,0.00018514,2]
[393055008,1762243843915,-500.0,0.00018514,2]
[393055009,1762243843925,-500.0,0.00018514,2]
[393055010,1762243843934,-500.0,0.00018514,2]
[393055011,1762243843943,-500.0,0.00018514,2]
[393055012,1762243843953,-500.0,0.00018514,2]
[393055013,1762243843963,-500.0,0.00018514,2]
[393055014,1762243843972,-500.0,0.00018514,2]
[393055015,1762243843982,-550.0,0.00018514,2]
[393055016,1762243843992,-500.0,0.00018514,2]
[393055017,1762243844002,-500.0,0.00018514,2]
[393055018,1762243844011,-500.0,0.00018514,2]
[393055019,1762243844021,-500.0,0.00018514,2]
[393055020,1762243844030,-500.0,0.00018514,2]
[393055021,1762243844040,-500.0,0.00018514,2]
[393055022,1762243844050,-500.0,0.00018514,2]
[393055023,1762243844059,-638.71973358,0.00018514,2]
[393055024,1762243844071,-3.97384321,0.00018514,2]
[393055025,1762243844080,-500.0,0.00018514,2]
[393055026,1762243844090,-500.0,0.00018514,2]
[393055027,1762243844099,-500.0,0.00018514,2]
[393055028,1762243844108,-496.02615679,0.00018514,2]
[393058342,1762243879005,368.62,0.00018509,3]
[393067713,1762244122002,164.0,0.00031374,120]
[393067714,1762244132380,168.0,0.00031374,120]
[393067720,1762244510208,1000.0,0.00017454,2]
[393067723,1762244544318,10000.0,0.00032877,120]
[393067724,1762244607359,1200.3864131,0.00018173,2]
[393067725,1762244611353,2247.32957847,0.00018102,2]
[393067779,1762244901213,10000.0,0.00032877,120]
[393067780,1762244904271,4986.26993781,0.00037492,120]
[393067788,1762244912533,590.10847,0.000149,2]
[393067789,1762244912649,1000.0,0.0001,2]
[393067790,1762244913069,3337.70955467,0.00018,2]
[393067793,1762244919132,10000.0,0.00032877,120]
[393067796,1762244920124,99999.99999801,0.00037492,20]
[393067802,1762244938161,1051.7,0.00032877,120]
[393067804,1762244948874,206.04539043,0.00018231,2]
[393067837,1762245032640,-630.63413919,0.00018309,2]
[393067838,1762245032650,-240.0,0.00018309,2]
[393067839,1762245032659,-1160.40235981,0.00018325,2]
[393067840,1762245032667,-150.0,0.00018328,2]
[393067841,1762245032676,-500.0,0.000184,2]
[393067842,1762245032686,-300.0,0.00018406,2]
[393067843,1762245032695,-300.0,0.00018406,2]
[393067844,1762245032705,-1200.0,0.00018406,2]
[393067845,1762245032714,-300.0,0.00018406,2]
[393067846,1762245032724,-457.65793172,0.00018407,2]
[393067847,1762245032733,-500.0,0.00018407,2]
[393067848,1762245032744,-500.0,0.00018407,2]
[393067849,1762245032755,-500.0,0.00018407,2]
[393067850,1762245032766,-500.0,0.00018407,2]
[393067851,1762245032777,-500.0,0.00018407,2]
[393067852,1762245032792,-500.0,0.00018407,2]
[393067853,1762245032804,-203.75305253,0.00018407,2]
[393067854,1762245032815,-500.0,0.00018407,2]
[393067855,1762245032827,-500.0,0.00018407,2]
[393067856,1762245032836,-213.38155699,0.00018407,2]
[393067857,1762245032846,-500.0,0.00018407,2]
[393067858,1762245032856,-500.0,0.00018407,2]
[393067859,1762245032867,-500.0,0.00018407,2]
[393067860,1762245032877,-500.0,0.00018407,2]
[393067861,1762245032888,-500.0,0.00018407,2]
[393067862,1762245032899,-500.0,0.00018407,2]
[393067863,1762245032909,-508.12401067,0.00018407,2]
[393067864,1762245032920,-500.0,0.00018407,2]
[393067865,1762245032931,-500.0,0.00018407,2]
[393067866,1762245032942,-500.0,0.00018407,2]
[393067867,1762245032952,-500.0,0.00018407,2]
[393067868,1762245032963,-500.0,0.00018407,2]
[393067869,1762245032974,-500.0,0.00018407,2]
[393067870,1762245032984,-500.0,0.00018407,2]
[393067871,1762245032997,-500.0,0.00018407,2]
[393067872,1762245033007,-500.0,0.00018407,2]
[393067873,1762245033019,-500.0,0.00018407,2]
[393067874,1762245033030,-500.0,0.00018407,2]
[393067875,1762245033042,-500.0,0.00018407,2]
[393067876,1762245033054,-500.0,0.00018407,2]
[393067877,1762245033065,-500.0,0.00018407,2]
[393067878,1762245033075,-500.0,0.00018407,2]
[393067879,1762245033087,-500.0,0.00018407,2]
[393067880,1762245033098,-500.0,0.00018407,2]
[393067881,1762245033110,-500.0,0.00018407,2]
[393067882,1762245033124,-500.0,0.00018407,2]
[393067883,1762245033135,-500.0,0.00018407,2]
[393067884,1762245033147,-500.0,0.00018407,2]
[393067885,1762245033158,-500.0,0.00018407,2]
[393067886,1762245033168,-500.0,0.00018407,2]
[393067887,1762245033179,-500.0,0.00018407,2]
[393067888,1762245033190,-500.0,0.00018407,2]
[393067889,1762245033201,-500.0,0.00018407,2]
[393067890,1762245033212,-500.0,0.00018407,2]
[393067891,1762245033222,-500.0,0.00018407,2]
[393067892,1762245033233,-500.0,0.00018407,2]
[393067893,1762245033244,-500.0,0.00018407,2]
[393067894,1762245033254,-500.0,0.00018407,2]
[393067895,1762245033265,-500.0,0.00018407,2]
[393067896,1762245033275,-500.0,0.00018407,2]
[393067897,1762245033285,-500.0,0.00018407,2]
[393067898,1762245033295,-500.0,0.00018407,2]
[393067899,1762245033307,-500.0,0.00018407,2]
[393067900,1762245033318,-200.76448861,0.00018407,2]
[393067901,1762245033328,-500.0,0.00018407,2]
[393067902,1762245033338,-500.0,0.00018407,2]
[393067903,1762245033349,-500.0,0.00018407,2]
[393067904,1762245033360,-500.0,0.00018407,2]
[393067905,1762245033371,-500.0,0.00018407,2]
[393067906,1762245033382,-500.0,0.00018407,2]
[393067907,1762245033392,-500.0,0.00018407,2]
[393067908,1762245033403,-563.69667375,0.00018407,2]
[393067909,1762245033415,-500.0,0.00018407,2]
[393067910,1762245033426,-500.0,0.00018407,2]
[393067911,1762245033438,-500.0,0.00018407,2]
[393067912,1762245033449,-500.0,0.00018407,2]
[393067913,1762245033461,-500.0,0.00018407,2]
[393067914,1762245033472,-500.0,0.00018407,2]
[393067915,1762245033484,-500.0,0.00018407,2]
[393067916,1762245033496,-500.0,0.00018407,2]
[393067917,1762245033507,-500.0,0.00018407,2]
[393067918,1762245033519,-500.0,0.00018407,2]
[393067919,1762245033529,-508.79864022,0.00018407,2]
[393067920,1762245033539,-500.0,0.00018407,2]
[393067921,1762245033549,-500.0,0.00018407,2]
[393067922,1762245033560,-500.0,0.00018407,2]
[393067923,1762245033569,-500.0,0.00018407,2]
[393067924,1762245033580,-500.0,0.00018407,2]
[393067925,1762245033589,-500.0,0.00018407,2]
[393067926,1762245033599,-500.0,0.00018407,2]
[393067927,1762245033611,-500.0,0.00018407,2]
[393067928,1762245033621,-500.0,0.00018407,2]
[393067929,1762245033632,-500.0,0.00018407,2]
[393067930,1762245033643,-500.0,0.00018407,2]
[393067931,1762245033655,-500.0,0.00018407,2]
[393067932,1762245033666,-500.0,0.00018407,2]
[393067933,1762245033677,-500.0,0.00018407,2]
[393067934,1762245033689,-500.0,0.00018407,2]
[393067935,1762245033699,-500.0,0.00018407,2]
[393067936,1762245033709,-500.0,0.00018407,2]
[393067937,1762245033719,-500.0,0.00018407,2]
[393067938,1762245033729,-500.0,0.00018407,2]
[393067939,1762245033739,-500.0,0.00018407,2]
[393067940,1762245033750,-500.0,0.00018407,2]
[393067941,1762245033760,-500.0,0.00018407,2]
[393067942,1762245033770,-500.0,0.00018407,2]
[393067943,1762245033782,-500.0,0.00018407,2]
[393067944,1762245033796,-500.0,0.00018407,2]
[393067945,1762245033806,-500.0,0.00018407,2]
[393067946,1762245033816,-500.0,0.00018407,2]
[393067947,1762245033827,-500.0,0.00018407,2]
[393067948,1762245033837,-500.0,0.00018407,2]
[393067949,1762245033846,-500.0,0.00018407,2]
[393067950,1762245033856,-500.0,0.00018407,2]
[393067951,1762245033868,-500.0,0.00018407,2]
[393067952,1762245033878,-500.0,0.00018407,2]
[393067953,1762245033889,-500.0,0.00018407,2]
[393067954,1762245033899,-500.0,0.00018407,2]
[393067955,1762245033910,-500.0,0.00018407,2]
[393067956,1762245033920,-500.0,0.00018407,2]
[393067957,1762245033931,-500.0,0.00018407,2]
[393067958,1762245033941,-500.0,0.00018407,2]
[393067959,1762245033952,-500.0,0.00018407,2]
[393067960,1762245033962,-500.0,0.00018407,2]
[393067961,1762245033972,-500.0,0.00018407,2]
[393067962,1762245033982,-500.0,0.00018407,2]
[393067963,1762245033992,-500.0,0.00018407,2]
[393067964,1762245034002,-500.0,0.00018407,2]
[393067965,1762245034012,-500.0,0.00018407,2]
[393067966,1762245034022,-500.0,0.00018407,2]
[393067967,1762245034031,-500.0,0.00018407,2]
[393067968,1762245034042,-500.0,0.00018407,2]
[393067969,1762245034052,-500.0,0.00018407,2]
[393067970,1762245034062,-500.0,0.00018407,2]
[393067971,1762245034072,-500.0,0.00018407,2]
[393067972,1762245034082,-500.0,0.00018407,2]
[393067973,1762245034096,-500.0,0.00018407,2]
[393067974,1762245034106,-500.0,0.00018407,2]
[393067975,1762245034117,-500.0,0.00018407,2]
[393067976,1762245034128,-500.0,0.00018407,2]
[393067977,1762245034138,-500.0,0.00018407,2]
[393067978,1762245034149,-500.0,0.00018407,2]
[393067979,1762245034159,-500.0,0.00018407,2]
[393067980,1762245034169,-500.0,0.00018407,2]
[393067981,1762245034181,-500.0,0.00018407,2]
[393067982,1762245034191,-500.0,0.00018407,2]
[393067983,1762245034202,-500.0,0.00018407,2]
[393067984,1762245034212,-500.0,0.00018407,2]
[393067985,1762245034222,-500.0,0.00018407,2]
[393067986,1762245034376,-500.0,0.00018407,2]
[393067987,1762245034386,-500.0,0.00018407,2]
[393067988,1762245034395,-265.0187378,0.00018407,2]
[393067989,1762245034405,-500.0,0.00018407,2]
[393067990,1762245034414,-500.0,0.00018407,2]
[393067991,1762245034423,-500.0,0.00018407,2]
[393067992,1762245034434,-500.0,0.00018407,2]
[393067993,1762245034443,-500.0,0.00018407,2]
[393067994,1762245034454,-500.0,0.00018407,2]
[393067995,1762245034463,-500.0,0.00018407,2]
[393067996,1762245034473,-199.99999999,0.00018407,2]
[393067997,1762245034482,-500.0,0.00018407,2]
[393067998,1762245034492,-500.0,0.00018407,2]
[393067999,1762245034503,-500.0,0.00018407,2]
[393068000,1762245034512,-500.0,0.00018407,2]
[393068001,1762245034522,-500.0,0.00018407,2]
[393068002,1762245034531,-500.0,0.00018407,2]
[393068003,1762245034541,-500.0,0.00018407,2]
[393068004,1762245034551,-500.0,0.00018407,2]
[393068005,1762245034560,-530.35219911,0.00018407,2]
[393068006,1762245034570,-500.0,0.00018407,2]
[393068007,1762245034579,-500.0,0.00018407,2]
[393068008,1762245034588,-500.0,0.00018407,2]
[393068009,1762245034598,-558242.36389636,0.00018408,2]
[393068010,1762245034612,-26911.51267456,0.00018408,2]
[393068011,1762245034624,-1398.17659734,0.00018408,2]
[393068012,1762245034635,-935.95,0.00018408,2]
[393068042,1762245045144,-1447.06142128,0.00018319,2]
[393068043,1762245045153,-8084.18165231,0.00018408,2]
[393068044,1762245045318,-4572.17141055,0.00018408,2]
[393068045,1762245045331,-2256.50749245,0.00018408,2]
[393068070,1762245046868,-82599.13627643,0.00018408,2]
[393068071,1762245046878,-220506.52366837,0.00018419,2]
[393068072,1762245046888,-500.0,0.00018507,2]
[393068073,1762245046897,-500.0,0.00018507,2]
[393068074,1762245046906,-168.62,0.00018508,2]
[393068075,1762245046915,-500.0,0.00018508,2]
[393068076,1762245046924,-500.0,0.00018508,2]
[393068077,1762245046934,-4434.2421778,0.00018514,2]
[393068078,1762245046944,-500.0,0.00018573,2]
[393068079,1762245046952,-329.74264923,0.00018573,2]
[393068080,1762245046961,-500.0,0.00018573,2]
[393068081,1762245046970,-500.0,0.00018573,2]
[393068082,1762245046979,-500.0,0.00018573,2]
[393068083,1762245046988,-500.0,0.00018573,2]
[393068084,1762245046998,-500.0,0.00018573,2]
[393068085,1762245047007,-2170.3949216,0.00018671,2]
[393068086,1762245047018,-500.0,0.00018681,2]
[393068087,1762245047027,-1200.3864132,0.00018698,2]
[393068088,1762245047037,-1075.17552594,0.00019121,2]
[393068089,1762245047048,-643.24708872,0.00019121,2]
[393068090,1762245047056,-1144.98246694,0.00019121,2]
[393068091,1762245047066,-420.0,0.00020075,2]
[393068092,1762245047075,-420.0,0.00020075,2]
[393068093,1762245047084,-3139.57632513,0.0002011,2]
[393068094,1762245047093,-1200.0,0.00020173,2]
[393068096,1762245047103,-150.0,0.00020307,2]
[393068098,1762245047112,-177.0,0.00020328,2]
[393068099,1762245047123,-3139.57632513,0.00020713,2]
[393068100,1762245047133,-989.4131672,0.00020864,2]
[393068101,1762245047143,-256.25043378,0.0002093,5]
[393068102,1762245047153,-151.0,0.000211,3]
[393068103,1762245047162,-3139.57632513,0.00021317,3]
[393068104,1762245047172,-220.7679184,0.00021389,2]
[393068105,1762245047183,-151.0,0.000217,3]
[393068106,1762245047193,-587.0,0.00021895,2]
[393068107,1762245047202,-500.0,0.00021917,2]
[393068108,1762245047211,-3139.57632513,0.00021921,3]
[393068109,1762245047221,-500.51415149,0.00021973,2]
[393068110,1762245047230,-602.01,0.00022,14]
[393068111,1762245047239,-19812.55,0.00022,7]
[393068112,1762245047249,-150.0,0.00022153,2]
[393068113,1762245047258,-243.61,0.000222,7]
[393068114,1762245047267,-151.0,0.000223,8]
[393068115,1762245047277,-204.0,0.00022328,2]
[393068116,1762245047288,-309.08,0.00022391,2]
[393068117,1762245047297,-3139.57632513,0.00022525,4]
[393068118,1762245047306,-151.0,0.00023,10]
[393068119,1762245047315,-3139.57632513,0.00023129,4]
[393068120,1762245047325,-151.0,0.000236,9]
[393068121,1762245047334,-3139.57632513,0.00023732,5]
[393068122,1762245047344,-823.0,0.0002388,2]
[393068123,1762245047353,-196.00250271,0.0002399,4]
[393068124,1762245047363,-223.33,0.00023999,2]
[393068125,1762245047373,-151.0,0.000243,7]
[393068126,1762245047383,-231.0,0.00024328,2]
[393068127,1762245047391,-3139.57632513,0.00024336,5]
[393068128,1762245047401,-500.0,0.00024873,2]
[393068129,1762245047410,-500.0,0.00024873,2]
[393068130,1762245047419,-500.0,0.00024873,2]
[393068131,1762245047428,-500.0,0.00024873,2]
[393068132,1762245047438,-500.0,0.00024873,2]
[393068133,1762245047448,-501.15877118,0.00024873,2]
[393068134,1762245047458,-150.0,0.00024873,2]
[393068135,1762245047469,-500.0,0.00024873,2]
[393068136,1762245047479,-500.0,0.00024873,2]
[393068137,1762245047489,-500.0,0.00024873,2]
[393068138,1762245047500,-1160.40235976,0.00024899,2]
[393068139,1762245047509,-221954.80684618,0.000249,2]
[393068140,1762245047521,-10405.0,0.000249,2]
[393068141,1762245047532,-3118.5,0.000249,2]
[393068215,1762245239582,264.938123,0.00013699,2]
[393068218,1762245319891,286.89,0.00018298,3]
[393068219,1762245329045,168.0,0.00024866,120]
[393068220,1762245330765,860.71,0.00018298,3]
[393068221,1762245342531,916.0,0.00018301,2]
[393068231,1762245463640,573.78,0.00018298,3]
[393068233,1762245480119,254.3614505,0.000328,120]
[393068287,1762245600163,1339.0651992,0.00018207,2]
[393068290,1762245618934,199.0,0.00024874,120]
[393068291,1762245620250,199.0,0.00026118,120]
[393068292,1762245621636,199.0,0.00027424,120]
[393068293,1762245622977,199.0,0.00028795,120]
[393068294,1762245624271,199.0,0.00030234,120]
[393068295,1762245625599,199.0,0.00031746,120]
[393068299,1762245800450,169.082007,8.826e-05,2]
[393068312,1762245881008,1171.6820493,0.00018203,2]
[393068316,1762245901362,300.0,0.00018301,2]
[393068317,1762245902033,300.0,0.00018301,2]
[393068318,1762245902254,300.0,0.00018301,2]
[393068319,1762245902797,300.0,0.00018301,2]
[393068320,1762245903062,1200.0,0.00018301,2]
[393068321,1762245903261,300.0,0.00018301,2]
[393068322,1762245919627,160.0,0.0002489,120]
[393068323,1762245921242,160.0,0.00026134,120]
[393068324,1762245922601,160.0,0.00027441,120]
[393068325,1762245923878,160.0,0.00028813,120]
[393068326,1762245925153,160.0,0.00030253,120]
[393068327,1762245962771,300.0,0.00018301,2]
[393068329,1762246022679,300.0,0.00018301,2]
[393068370,1762246061650,1200.0,0.00018301,2]
[393068371,1762246082402,300.0,0.00018301,2]
[393068372,1762246095694,431.829454,0.00017503,2]
[393068373,1762246113004,500.0,0.00018301,2]
[393068374,1762246113037,500.0,0.00018301,2]
[393068375,1762246113070,500.0,0.00018301,2]
[393068376,1762246113106,500.0,0.00018301,2]
[393068377,1762246113138,167.11772384,0.00018301,2]
[393068378,1762246113168,500.0,0.00018301,2]
[393068379,1762246113347,500.0,0.00018301,2]
[393068380,1762246113387,500.0,0.00018301,2]
[393068381,1762246113418,230.83984166,0.00018301,2]
[393068382,1762246113450,500.0,0.00018301,2]
[393068383,1762246113482,500.0,0.00018301,2]
[393068384,1762246113516,500.0,0.00018301,2]
[393068385,1762246113547,500.0,0.00018301,2]